[Event "Titled Tuesday Blitz November 08 Early 2022"]
[White "Koridze, Lile"]
[Black "Parpiev, Isaak"]
[WhiteFideId "13612514"]
[BlackFideId "34281576"]
[WhiteElo "2050"]
[BlackElo "2094"]
[Result "0-1"]
[Round "09"]
[TimeControl "180+1"]
[Date "2022.11.09"]
[WhiteClock "0:01:31"]
[BlackClock "0:01:01"]

1. d4 {[%clk 0:03:00]}  Nf6 {[%clk 0:02:52]} 2. c4 {[%clk 0:03:01]}  g6 {[%clk 0:02:51]} 3. Nc3 {[%clk 0:03:01]}  Bg7 {[%clk 0:02:49]} 4. e4 {[%clk 0:03:01]}  O-O {[%clk 0:02:50]} 5. Nf3 {[%clk 0:03:01]}  c5 {[%clk 0:02:50]} 6. d5 {[%clk 0:02:59]}  d6 {[%clk 0:02:50]} 7. Be2 {[%clk 0:03:00]}  Bg4 {[%clk 0:02:49]} 8. O-O {[%clk 0:03:00]}  Na6 {[%clk 0:02:49]} 9. h3 {[%clk 0:03:00]}  Bxf3 {[%clk 0:02:49]} 10. Bxf3 {[%clk 0:03:01]}  Nc7 {[%clk 0:02:50]} 11. Bf4 {[%clk 0:03:00]}  Nd7 {[%clk 0:02:50]} 12. Rc1 {[%clk 0:02:58]}  a6 {[%clk 0:02:50]} 13. a3 {[%clk 0:02:57]}  b5 {[%clk 0:02:49]} 14. b3 {[%clk 0:02:57]}  Rb8 {[%clk 0:02:48]} 15. cxb5 {[%clk 0:02:43]}  axb5 {[%clk 0:02:48]} 16. Qd3 {[%clk 0:02:38]}  b4 {[%clk 0:02:46]} 17. axb4 {[%clk 0:02:37]}  Rxb4 {[%clk 0:02:47]} 18. Na2 {[%clk 0:02:34]}  Rb6 {[%clk 0:02:39]} 19. Be3 {[%clk 0:02:31]}  Ne5 {[%clk 0:02:38]} 20. Qd1 {[%clk 0:02:27]}  Nxf3+ {[%clk 0:02:37]} 21. gxf3 {[%clk 0:02:27]}  Qd7 {[%clk 0:02:36]} 22. b4 {[%clk 0:02:28]}  Ra6 {[%clk 0:02:27]} 23. Qe2 {[%clk 0:02:25]}  Rfa8 {[%clk 0:02:21]} 24. Rc2 {[%clk 0:02:22]}  Qxh3 {[%clk 0:02:15]} 25. bxc5 {[%clk 0:02:22]}  dxc5 {[%clk 0:02:11]} 26. f4 {[%clk 0:02:14]}  Bd4 {[%clk 0:01:29]} 27. Bxd4 {[%clk 0:02:13]}  cxd4 {[%clk 0:01:30]} 28. Nb4 {[%clk 0:02:13]}  Ra4 {[%clk 0:01:25]} 29. Rxc7 {[%clk 0:01:57]}  Rxb4 {[%clk 0:01:25]} 30. Rxe7 {[%clk 0:01:57]}  Qh4 {[%clk 0:01:12]} 31. d6 {[%clk 0:01:47]}  Qxf4 {[%clk 0:01:11]} 32. e5 {[%clk 0:01:46]}  Qg5+ {[%clk 0:01:04]} 33. Kh2 {[%clk 0:01:32]}  d3 {[%clk 0:01:04]} 34. Qxd3 {[%clk 0:01:30]}  Rh4+ {[%clk 0:01:04]} 35. Qh3 {[%clk 0:01:31]}  Rxh3+ {[%clk 0:01:04]} 36. Kxh3 {[%clk 0:01:31]}  Ra3+ {[%clk 0:01:01]} 0-1


[Site "https://www.chess.com"]

[Event "Titled Tuesday Blitz November 08 Early 2022"]
[White "Kosteniuk, Alexandra"]
[Black "Durarbayli, Vasif"]
[WhiteFideId "4128125"]
[BlackFideId "13402935"]
[WhiteElo "2469"]
[BlackElo "2586"]
[Result "0-1"]
[Round "09"]
[TimeControl "180+1"]
[Date "2022.11.08"]
[WhiteClock "0:00:55"]
[BlackClock "0:00:22"]

1. e4 {[%clk 0:03:00]}  c5 {[%clk 0:02:59]} 2. c3 {[%clk 0:03:00]}  Nf6 {[%clk 0:02:57]} 3. e5 {[%clk 0:03:00]}  Nd5 {[%clk 0:02:58]} 4. Nf3 {[%clk 0:03:00]}  Nc6 {[%clk 0:02:58]} 5. Bc4 {[%clk 0:03:00]}  Nb6 {[%clk 0:02:58]} 6. Bb3 {[%clk 0:03:00]}  d5 {[%clk 0:02:58]} 7. exd6 {[%clk 0:02:59]}  c4 {[%clk 0:02:58]} 8. Bc2 {[%clk 0:02:59]}  Qxd6 {[%clk 0:02:59]} 9. O-O {[%clk 0:02:59]}  g6 {[%clk 0:03:00]} 10. Na3 {[%clk 0:02:57]}  Bg7 {[%clk 0:02:55]} 11. b3 {[%clk 0:02:55]}  Be6 {[%clk 0:02:54]} 12. bxc4 {[%clk 0:02:29]}  Nxc4 {[%clk 0:02:51]} 13. Nxc4 {[%clk 0:02:25]}  Bxc4 {[%clk 0:02:52]} 14. d3 {[%clk 0:02:24]}  Bxc3 {[%clk 0:02:20]} 15. Rb1 {[%clk 0:01:55]}  Bxa2 {[%clk 0:02:00]} 16. Rxb7 {[%clk 0:01:55]}  O-O {[%clk 0:02:00]} 17. Ng5 {[%clk 0:01:50]}  Bg7 {[%clk 0:01:30]} 18. Qg4 {[%clk 0:01:46]}  Nd4 {[%clk 0:01:15]} 19. Ba4 {[%clk 0:01:36]}  Qa6 {[%clk 0:00:59]} 20. Rb4 {[%clk 0:01:35]}  Rad8 {[%clk 0:00:48]} 21. Re1 {[%clk 0:00:56]}  Qxd3 {[%clk 0:00:34]} 22. Bb2 {[%clk 0:00:55]}  Qd2 {[%clk 0:00:22]} 0-1


[Site "https://www.chess.com"]

[Event "Titled Tuesday Blitz November 08 Early 2022"]
[White "Kozak, Antoni"]
[Black "D`Arruda, Ricardo D."]
[WhiteFideId "21832030"]
[BlackFideId "100692"]
[WhiteElo "2710"]
[BlackElo "2522"]
[Result "1-0"]
[Round "09"]
[TimeControl "180+1"]
[Date "2022.11.09"]
[WhiteClock "0:00:08"]
[BlackClock "0:00:06"]

1. e4 {[%clk 0:02:59]}  c5 {[%clk 0:02:59]} 2. Nf3 {[%clk 0:02:59]}  Nc6 {[%clk 0:03:00]} 3. g3 {[%clk 0:02:56]}  Nf6 {[%clk 0:02:57]} 4. Nc3 {[%clk 0:02:55]}  d5 {[%clk 0:02:57]} 5. exd5 {[%clk 0:02:55]}  Nxd5 {[%clk 0:02:58]} 6. Bg2 {[%clk 0:02:55]}  Bg4 {[%clk 0:02:53]} 7. h3 {[%clk 0:02:53]}  Bh5 {[%clk 0:02:53]} 8. g4 {[%clk 0:02:45]}  Bg6 {[%clk 0:02:52]} 9. d3 {[%clk 0:02:43]}  e6 {[%clk 0:02:51]} 10. Be3 {[%clk 0:02:27]}  Nxe3 {[%clk 0:02:47]} 11. fxe3 {[%clk 0:02:27]}  Qc7 {[%clk 0:02:44]} 12. Qe2 {[%clk 0:02:26]}  O-O-O {[%clk 0:02:42]} 13. O-O-O {[%clk 0:02:18]}  Be7 {[%clk 0:02:42]} 14. Kb1 {[%clk 0:02:15]}  h5 {[%clk 0:02:41]} 15. g5 {[%clk 0:02:03]}  h4 {[%clk 0:02:39]} 16. Qf2 {[%clk 0:02:03]}  Bd6 {[%clk 0:02:33]} 17. Ne2 {[%clk 0:01:58]}  Bh5 {[%clk 0:02:30]} 18. Rdf1 {[%clk 0:01:21]}  Bg3 {[%clk 0:01:56]} 19. Nxg3 {[%clk 0:01:19]}  hxg3 {[%clk 0:01:56]} 20. Qe1 {[%clk 0:01:17]}  Kb8 {[%clk 0:01:43]} 21. h4 {[%clk 0:01:16]}  Bg4 {[%clk 0:01:41]} 22. Nd2 {[%clk 0:01:02]}  Ne7 {[%clk 0:01:20]} 23. Rxf7 {[%clk 0:00:55]}  Rdf8 {[%clk 0:01:19]} 24. Rxf8+ {[%clk 0:00:30]}  Rxf8 {[%clk 0:01:20]} 25. Ne4 {[%clk 0:00:31]}  Nf5 {[%clk 0:01:18]} 26. h5 {[%clk 0:00:22]}  Rh8 {[%clk 0:01:18]} 27. h6 {[%clk 0:00:22]}  gxh6 {[%clk 0:01:16]} 28. gxh6 {[%clk 0:00:23]}  Rxh6 {[%clk 0:01:11]} 29. Rxh6 {[%clk 0:00:23]}  Nxh6 {[%clk 0:01:12]} 30. Qxg3 {[%clk 0:00:22]}  Qxg3 {[%clk 0:01:09]} 31. Nxg3 {[%clk 0:00:22]}  b6 {[%clk 0:01:03]} 32. Kc1 {[%clk 0:00:19]}  Kc7 {[%clk 0:01:04]} 33. Kd2 {[%clk 0:00:19]}  Kd6 {[%clk 0:01:04]} 34. Ne4+ {[%clk 0:00:17]}  Ke5 {[%clk 0:01:04]} 35. Nc3 {[%clk 0:00:18]}  Bh5 {[%clk 0:00:54]} 36. Nb5 {[%clk 0:00:17]}  a5 {[%clk 0:00:54]} 37. Na3 {[%clk 0:00:12]}  Kd6 {[%clk 0:00:54]} 38. Nc4+ {[%clk 0:00:12]}  Kc7 {[%clk 0:00:54]} 39. Be4 {[%clk 0:00:09]}  Be8 {[%clk 0:00:50]} 40. Ne5 {[%clk 0:00:09]}  Nf7 {[%clk 0:00:48]} 41. Nxf7 {[%clk 0:00:08]}  Bxf7 {[%clk 0:00:49]} 42. d4 {[%clk 0:00:09]}  Kd6 {[%clk 0:00:47]} 43. c4 {[%clk 0:00:08]}  e5 {[%clk 0:00:47]} 44. d5 {[%clk 0:00:08]}  Be8 {[%clk 0:00:44]} 45. Bc2 {[%clk 0:00:07]}  Bd7 {[%clk 0:00:44]} 46. Ke2 {[%clk 0:00:07]}  Be8 {[%clk 0:00:45]} 47. Kf3 {[%clk 0:00:07]}  Bd7 {[%clk 0:00:45]} 48. Kg3 {[%clk 0:00:08]}  Be8 {[%clk 0:00:46]} 49. Kh4 {[%clk 0:00:08]}  Bd7 {[%clk 0:00:46]} 50. Kg5 {[%clk 0:00:08]}  Bh3 {[%clk 0:00:46]} 51. Ba4 {[%clk 0:00:08]}  Bf1 {[%clk 0:00:46]} 52. Bb5 {[%clk 0:00:07]}  Bh3 {[%clk 0:00:45]} 53. Kf6 {[%clk 0:00:07]}  Bc8 {[%clk 0:00:45]} 54. Kf7 {[%clk 0:00:07]}  Bg4 {[%clk 0:00:37]} 55. Ke8 {[%clk 0:00:07]}  Bf5 {[%clk 0:00:37]} 56. Kd8 {[%clk 0:00:07]}  Bg4 {[%clk 0:00:37]} 57. Ba6 {[%clk 0:00:07]}  Bf5 {[%clk 0:00:36]} 58. Ke8 {[%clk 0:00:03]}  Bg4 {[%clk 0:00:36]} 59. Bb5 {[%clk 0:00:04]}  Bf5 {[%clk 0:00:36]} 60. Kf7 {[%clk 0:00:05]}  Bg4 {[%clk 0:00:36]} 61. Kf6 {[%clk 0:00:05]}  Be2 {[%clk 0:00:36]} 62. Kg5 {[%clk 0:00:05]}  Bd3 {[%clk 0:00:36]} 63. Kh4 {[%clk 0:00:05]}  Be2 {[%clk 0:00:37]} 64. Kg3 {[%clk 0:00:06]}  Bd3 {[%clk 0:00:37]} 65. Kf2 {[%clk 0:00:06]}  Be4 {[%clk 0:00:37]} 66. Ke1 {[%clk 0:00:07]}  Bd3 {[%clk 0:00:37]} 67. Kd2 {[%clk 0:00:07]}  Be4 {[%clk 0:00:37]} 68. Kc3 {[%clk 0:00:08]}  Bf3 {[%clk 0:00:37]} 69. a3 {[%clk 0:00:08]}  Bd1 {[%clk 0:00:37]} 70. b4 {[%clk 0:00:08]}  axb4+ {[%clk 0:00:34]} 71. axb4 {[%clk 0:00:08]}  Bf3 {[%clk 0:00:34]} 72. Ba4 {[%clk 0:00:07]}  Be2 {[%clk 0:00:32]} 73. Bc2 {[%clk 0:00:07]}  Bf1 {[%clk 0:00:30]} 74. bxc5+ {[%clk 0:00:07]}  Kxc5 {[%clk 0:00:29]} 75. Bd3 {[%clk 0:00:07]}  Bh3 {[%clk 0:00:28]} 76. Kd2 {[%clk 0:00:07]}  Bd7 {[%clk 0:00:29]} 77. Ke2 {[%clk 0:00:07]}  Kd6 {[%clk 0:00:29]} 78. Kf3 {[%clk 0:00:07]}  Bh3 {[%clk 0:00:28]} 79. Kg3 {[%clk 0:00:08]}  Bd7 {[%clk 0:00:28]} 80. Kh4 {[%clk 0:00:08]}  Be8 {[%clk 0:00:28]} 81. Kg5 {[%clk 0:00:09]}  Ba4 {[%clk 0:00:28]} 82. Kf6 {[%clk 0:00:09]}  Bd7 {[%clk 0:00:28]} 83. Kf7 {[%clk 0:00:09]}  Bh3 {[%clk 0:00:29]} 84. Kf8 {[%clk 0:00:10]}  Bg4 {[%clk 0:00:29]} 85. Ke8 {[%clk 0:00:10]}  Bh3 {[%clk 0:00:29]} 86. Kd8 {[%clk 0:00:11]}  Bg4 {[%clk 0:00:29]} 87. Bf1 {[%clk 0:00:10]}  Bf5 {[%clk 0:00:28]} 88. Ke8 {[%clk 0:00:10]}  Bg4 {[%clk 0:00:28]} 89. Kf7 {[%clk 0:00:11]}  Bf5 {[%clk 0:00:28]} 90. Kf6 {[%clk 0:00:11]}  Bc2 {[%clk 0:00:28]} 91. Kg5 {[%clk 0:00:12]}  Be4 {[%clk 0:00:28]} 92. Kg4 {[%clk 0:00:12]}  Bc2 {[%clk 0:00:28]} 93. Kg3 {[%clk 0:00:13]}  Be4 {[%clk 0:00:28]} 94. Kf2 {[%clk 0:00:13]}  b5 {[%clk 0:00:25]} 95. cxb5 {[%clk 0:00:12]}  Bxd5 {[%clk 0:00:25]} 96. Ke1 {[%clk 0:00:12]}  Kc5 {[%clk 0:00:25]} 97. Kd2 {[%clk 0:00:13]}  Bb7 {[%clk 0:00:25]} 98. Kc3 {[%clk 0:00:12]}  Bc8 {[%clk 0:00:24]} 99. Kb3 {[%clk 0:00:13]}  Bd7 {[%clk 0:00:23]} 100. Ka4 {[%clk 0:00:13]}  Kb6 {[%clk 0:00:22]} 101. Kb4 {[%clk 0:00:14]}  Be6 {[%clk 0:00:22]} 102. Bd3 {[%clk 0:00:08]}  Bf7 {[%clk 0:00:21]} 103. Be4 {[%clk 0:00:08]}  Be6 {[%clk 0:00:21]} 104. Bc6 {[%clk 0:00:08]}  Bf7 {[%clk 0:00:21]} 105. Kc3 {[%clk 0:00:09]}  Kc5 {[%clk 0:00:20]} 106. Kd3 {[%clk 0:00:09]}  Bg6+ {[%clk 0:00:20]} 107. Ke2 {[%clk 0:00:09]}  Bf5 {[%clk 0:00:20]} 108. Kf3 {[%clk 0:00:09]}  Bg6 {[%clk 0:00:20]} 109. Kg4 {[%clk 0:00:10]}  Bd3 {[%clk 0:00:19]} 110. Kg5 {[%clk 0:00:10]}  Kd6 {[%clk 0:00:16]} 111. Kf6 {[%clk 0:00:10]}  Bc4 {[%clk 0:00:16]} 112. Be8 {[%clk 0:00:10]}  Bd5 {[%clk 0:00:08]} 113. Bc6 {[%clk 0:00:08]}  Bc4 {[%clk 0:00:07]} 114. Be8 {[%clk 0:00:08]}  Bd3 {[%clk 0:00:07]} 115. b6 {[%clk 0:00:08]}  Be4 {[%clk 0:00:06]} 116. Bg6 {[%clk 0:00:05]}  Bb7 {[%clk 0:00:06]} 117. Be8 {[%clk 0:00:05]}  Kc5 {[%clk 0:00:06]} 118. Kxe5 {[%clk 0:00:06]}  Kxb6 {[%clk 0:00:06]} 119. Kd6 {[%clk 0:00:06]}  Be4 {[%clk 0:00:06]} 120. Bf7 {[%clk 0:00:06]}  Kb7 {[%clk 0:00:05]} 121. Bd5+ {[%clk 0:00:06]}  Bxd5 {[%clk 0:00:04]} 122. Kxd5 {[%clk 0:00:07]}  Kc7 {[%clk 0:00:05]} 123. Ke6 {[%clk 0:00:07]}  Kd8 {[%clk 0:00:05]} 124. e4 {[%clk 0:00:06]}  Ke8 {[%clk 0:00:06]} 125. e5 {[%clk 0:00:07]}  Kd8 {[%clk 0:00:07]} 126. Kf7 {[%clk 0:00:07]}  Kc7 {[%clk 0:00:06]} 127. e6 {[%clk 0:00:08]} 1-0


[Site "https://www.chess.com"]

[Event "Titled Tuesday Blitz November 08 Early 2022"]
[White "Lawson, Eric"]
[Black "Zemlyanskii, Ivan"]
[WhiteFideId "2604116"]
[BlackFideId "24249971"]
[WhiteElo "2508"]
[BlackElo "2107"]
[Result "0-1"]
[Round "09"]
[TimeControl "180+1"]
[Date "2022.11.09"]
[WhiteClock "0:01:11"]
[BlackClock "0:00:34"]

1. e4 {[%clk 0:03:00]}  c5 {[%clk 0:02:55]} 2. Nf3 {[%clk 0:02:59]}  e6 {[%clk 0:02:55]} 3. g3 {[%clk 0:03:00]}  Nc6 {[%clk 0:02:56]} 4. Bg2 {[%clk 0:03:00]}  Nf6 {[%clk 0:02:56]} 5. Nc3 {[%clk 0:02:59]}  d5 {[%clk 0:02:57]} 6. exd5 {[%clk 0:02:59]}  exd5 {[%clk 0:02:58]} 7. d4 {[%clk 0:02:59]}  cxd4 {[%clk 0:02:59]} 8. Nxd4 {[%clk 0:02:59]}  Bg4 {[%clk 0:02:59]} 9. f3 {[%clk 0:02:59]}  Bd7 {[%clk 0:02:59]} 10. Be3 {[%clk 0:02:56]}  Bb4 {[%clk 0:02:56]} 11. O-O {[%clk 0:02:51]}  O-O {[%clk 0:02:56]} 12. Nde2 {[%clk 0:02:39]}  Be6 {[%clk 0:02:32]} 13. Bf2 {[%clk 0:02:39]}  Bf5 {[%clk 0:02:23]} 14. Nb5 {[%clk 0:02:29]}  Re8 {[%clk 0:02:17]} 15. c3 {[%clk 0:02:27]}  Ba5 {[%clk 0:02:01]} 16. Re1 {[%clk 0:02:24]}  Bb6 {[%clk 0:01:48]} 17. Nbd4 {[%clk 0:02:23]}  Bg6 {[%clk 0:01:46]} 18. Qd2 {[%clk 0:01:59]}  Ne5 {[%clk 0:01:46]} 19. Nf4 {[%clk 0:01:47]}  Nc4 {[%clk 0:01:45]} 20. Qc1 {[%clk 0:01:35]}  Rxe1+ {[%clk 0:01:44]} 21. Bxe1 {[%clk 0:01:35]}  Rc8 {[%clk 0:01:29]} 22. Bf2 {[%clk 0:01:36]}  Qd6 {[%clk 0:01:17]} 23. Bh3 {[%clk 0:01:36]}  Re8 {[%clk 0:01:13]} 24. b3 {[%clk 0:01:35]}  Ne5 {[%clk 0:01:10]} 25. Qd1 {[%clk 0:01:28]}  Qc7 {[%clk 0:01:03]} 26. Rc1 {[%clk 0:01:26]}  a6 {[%clk 0:00:54]} 27. Kg2 {[%clk 0:01:26]}  Nh5 {[%clk 0:00:46]} 28. Nxh5 {[%clk 0:01:19]}  Bxh5 {[%clk 0:00:41]} 29. g4 {[%clk 0:01:20]}  Bg6 {[%clk 0:00:41]} 30. f4 {[%clk 0:01:20]}  Be4+ {[%clk 0:00:41]} 31. Kg3 {[%clk 0:01:12]}  Nd3 {[%clk 0:00:41]} 32. Rc2 {[%clk 0:01:10]}  Qxf4+ {[%clk 0:00:36]} 33. Kh4 {[%clk 0:01:11]}  Bd8+ {[%clk 0:00:34]} 0-1


[Site "https://www.chess.com"]

[Event "Titled Tuesday Blitz November 08 Early 2022"]
[White "Lazavik, Denis"]
[Black "Matlakov, Maxim"]
[WhiteFideId "13515110"]
[BlackFideId "4168003"]
[WhiteElo "2483"]
[BlackElo "2669"]
[Result "1/2-1/2"]
[Round "09"]
[TimeControl "180+1"]
[Date "2022.11.08"]
[WhiteClock "0:00:11"]
[BlackClock "0:00:13"]

1. d4 {[%clk 0:03:00]}  Nf6 {[%clk 0:03:00]} 2. c4 {[%clk 0:03:01]}  e6 {[%clk 0:02:59]} 3. Nf3 {[%clk 0:03:01]}  d5 {[%clk 0:02:57]} 4. g3 {[%clk 0:03:02]}  Bb4+ {[%clk 0:02:45]} 5. Bd2 {[%clk 0:03:02]}  Be7 {[%clk 0:02:44]} 6. Bg2 {[%clk 0:03:02]}  O-O {[%clk 0:02:44]} 7. O-O {[%clk 0:03:03]}  Nbd7 {[%clk 0:02:42]} 8. Qc2 {[%clk 0:03:02]}  c6 {[%clk 0:02:42]} 9. Bf4 {[%clk 0:03:02]}  b6 {[%clk 0:02:39]} 10. cxd5 {[%clk 0:03:02]}  cxd5 {[%clk 0:02:39]} 11. Rc1 {[%clk 0:03:02]}  Bb7 {[%clk 0:02:35]} 12. Bc7 {[%clk 0:03:02]}  Qe8 {[%clk 0:02:33]} 13. Qb3 {[%clk 0:03:02]}  Ne4 {[%clk 0:02:24]} 14. Nc3 {[%clk 0:03:01]}  Nxc3 {[%clk 0:02:22]} 15. Rxc3 {[%clk 0:03:01]}  Ba6 {[%clk 0:02:18]} 16. Rc2 {[%clk 0:02:58]}  Bc4 {[%clk 0:02:08]} 17. Qe3 {[%clk 0:02:54]}  Rc8 {[%clk 0:02:07]} 18. Bf4 {[%clk 0:02:53]}  Bb5 {[%clk 0:01:18]} 19. Rac1 {[%clk 0:02:47]}  Rxc2 {[%clk 0:01:17]} 20. Rxc2 {[%clk 0:02:48]}  Qa8 {[%clk 0:01:18]} 21. Qc1 {[%clk 0:02:41]}  Ba6 {[%clk 0:01:15]} 22. e3 {[%clk 0:02:11]}  Rc8 {[%clk 0:01:15]} 23. Rc7 {[%clk 0:02:11]}  Bd8 {[%clk 0:01:12]} 24. Rxc8 {[%clk 0:02:04]}  Qxc8 {[%clk 0:01:12]} 25. Qxc8 {[%clk 0:02:03]}  Bxc8 {[%clk 0:01:13]} 26. Bf1 {[%clk 0:02:02]}  a6 {[%clk 0:01:06]} 27. Bd3 {[%clk 0:01:59]}  f6 {[%clk 0:01:05]} 28. Bd6 {[%clk 0:01:57]}  g6 {[%clk 0:00:58]} 29. g4 {[%clk 0:01:55]}  Kf7 {[%clk 0:00:58]} 30. Kg2 {[%clk 0:01:52]}  h6 {[%clk 0:00:53]} 31. h4 {[%clk 0:01:50]}  g5 {[%clk 0:00:53]} 32. Kg3 {[%clk 0:01:47]}  b5 {[%clk 0:00:40]} 33. b3 {[%clk 0:01:45]}  Bb7 {[%clk 0:00:40]} 34. Ng1 {[%clk 0:01:40]}  Bc6 {[%clk 0:00:39]} 35. f4 {[%clk 0:01:27]}  a5 {[%clk 0:00:37]} 36. Nf3 {[%clk 0:01:23]}  b4 {[%clk 0:00:34]} 37. Ba6 {[%clk 0:01:09]}  gxf4+ {[%clk 0:00:22]} 38. exf4 {[%clk 0:01:08]}  Nb6 {[%clk 0:00:21]} 39. g5 {[%clk 0:00:57]}  Kg7 {[%clk 0:00:21]} 40. Kg4 {[%clk 0:00:46]}  Be8 {[%clk 0:00:21]} 41. Bd3 {[%clk 0:00:43]}  h5+ {[%clk 0:00:19]} 42. Kg3 {[%clk 0:00:43]}  Bg6 {[%clk 0:00:20]} 43. Ne1 {[%clk 0:00:38]}  Nc8 {[%clk 0:00:19]} 44. Bc5 {[%clk 0:00:38]}  Ne7 {[%clk 0:00:19]} 45. Bxe7 {[%clk 0:00:31]}  Bxe7 {[%clk 0:00:20]} 46. Kf3 {[%clk 0:00:28]}  Bd8 {[%clk 0:00:19]} 47. Bxg6 {[%clk 0:00:27]}  Kxg6 {[%clk 0:00:17]} 48. Nc2 {[%clk 0:00:27]}  Bb6 {[%clk 0:00:16]} 49. Kg3 {[%clk 0:00:25]}  Kf5 {[%clk 0:00:15]} 50. Kf3 {[%clk 0:00:16]}  Kg6 {[%clk 0:00:15]} 51. Kg3 {[%clk 0:00:11]}  Ba7 {[%clk 0:00:15]} 52. Kf3 {[%clk 0:00:11]}  Bb6 {[%clk 0:00:13]} 1/2-1/2


[Site "https://www.chess.com"]

[Event "Titled Tuesday Blitz November 08 Early 2022"]
[White "Manukian, Artak"]
[Black "Goroshkov, Maksym"]
[WhiteFideId "13301373"]
[BlackFideId "14142716"]
[WhiteElo "2130"]
[BlackElo "2257"]
[Result "1/2-1/2"]
[Round "09"]
[TimeControl "180+1"]
[Date "2022.11.09"]
[WhiteClock "0:00:15"]
[BlackClock "0:01:02"]

1. e4 {[%clk 0:02:52]}  e5 {[%clk 0:02:59]} 2. Nf3 {[%clk 0:02:51]}  d6 {[%clk 0:02:56]} 3. d4 {[%clk 0:02:51]}  Bg4 {[%clk 0:02:57]} 4. dxe5 {[%clk 0:02:51]}  Nd7 {[%clk 0:02:57]} 5. exd6 {[%clk 0:02:49]}  Bxd6 {[%clk 0:02:58]} 6. Be2 {[%clk 0:02:48]}  Ngf6 {[%clk 0:02:57]} 7. h3 {[%clk 0:02:48]}  Bh5 {[%clk 0:02:55]} 8. e5 {[%clk 0:02:44]}  Bxf3 {[%clk 0:02:40]} 9. exd6 {[%clk 0:02:31]}  Bc6 {[%clk 0:02:30]} 10. O-O {[%clk 0:02:27]}  O-O {[%clk 0:02:28]} 11. Nc3 {[%clk 0:02:15]}  cxd6 {[%clk 0:02:26]} 12. Qxd6 {[%clk 0:02:14]}  Re8 {[%clk 0:02:24]} 13. Be3 {[%clk 0:02:07]}  Nb6 {[%clk 0:02:14]} 14. Qxd8 {[%clk 0:01:51]}  Raxd8 {[%clk 0:02:15]} 15. Rfe1 {[%clk 0:01:51]}  Nfd5 {[%clk 0:02:13]} 16. Nxd5 {[%clk 0:01:46]}  Nxd5 {[%clk 0:02:14]} 17. Bd3 {[%clk 0:01:32]}  Nxe3 {[%clk 0:02:12]} 18. Rxe3 {[%clk 0:01:33]}  Rxe3 {[%clk 0:02:11]} 19. fxe3 {[%clk 0:01:34]}  Re8 {[%clk 0:02:11]} 20. Kf2 {[%clk 0:01:34]}  g6 {[%clk 0:02:10]} 21. a4 {[%clk 0:01:28]}  f5 {[%clk 0:02:09]} 22. a5 {[%clk 0:01:25]}  a6 {[%clk 0:02:06]} 23. b4 {[%clk 0:01:25]}  Kg7 {[%clk 0:02:01]} 24. Rb1 {[%clk 0:01:24]}  Rc8 {[%clk 0:01:59]} 25. c4 {[%clk 0:01:14]}  Be4 {[%clk 0:01:43]} 26. Bxe4 {[%clk 0:01:11]}  fxe4 {[%clk 0:01:44]} 27. Rc1 {[%clk 0:01:08]}  Kf6 {[%clk 0:01:43]} 28. Ke2 {[%clk 0:01:06]}  Ke5 {[%clk 0:01:43]} 29. c5 {[%clk 0:00:57]}  Rd8 {[%clk 0:01:41]} 30. c6 {[%clk 0:00:56]}  bxc6 {[%clk 0:01:39]} 31. Rxc6 {[%clk 0:00:57]}  Rb8 {[%clk 0:01:38]} 32. Rxa6 {[%clk 0:00:47]}  Rxb4 {[%clk 0:01:38]} 33. Rb6 {[%clk 0:00:46]}  Ra4 {[%clk 0:01:38]} 34. a6 {[%clk 0:00:46]}  Ra2+ {[%clk 0:01:37]} 35. Kf1 {[%clk 0:00:46]}  Kd5 {[%clk 0:01:36]} 36. h4 {[%clk 0:00:32]}  Ke5 {[%clk 0:01:34]} 37. g4 {[%clk 0:00:31]}  Ra3 {[%clk 0:01:24]} 38. Kf2 {[%clk 0:00:30]}  Ra2+ {[%clk 0:01:24]} 39. Kf1 {[%clk 0:00:26]}  Ra3 {[%clk 0:01:23]} 40. Ke2 {[%clk 0:00:26]}  Ra2+ {[%clk 0:01:24]} 41. Ke1 {[%clk 0:00:27]}  Ra3 {[%clk 0:01:24]} 42. Kd2 {[%clk 0:00:27]}  Rd3+ {[%clk 0:01:22]} 43. Ke2 {[%clk 0:00:26]}  Ra3 {[%clk 0:01:21]} 44. h5 {[%clk 0:00:24]}  gxh5 {[%clk 0:01:20]} 45. gxh5 {[%clk 0:00:24]}  Ra2+ {[%clk 0:01:17]} 46. Kf1 {[%clk 0:00:24]}  Kf5 {[%clk 0:01:17]} 47. h6 {[%clk 0:00:20]}  Kg4 {[%clk 0:01:15]} 48. Rf6 {[%clk 0:00:20]}  Kg3 {[%clk 0:01:08]} 49. Ke1 {[%clk 0:00:20]}  Kg4 {[%clk 0:01:05]} 50. Kd1 {[%clk 0:00:20]}  Kg5 {[%clk 0:01:05]} 51. Re6 {[%clk 0:00:19]}  Kf5 {[%clk 0:01:05]} 52. Rb6 {[%clk 0:00:19]}  Kg4 {[%clk 0:01:02]} 53. Rf6 {[%clk 0:00:18]}  Kg5 {[%clk 0:01:02]} 54. Re6 {[%clk 0:00:17]}  Kf5 {[%clk 0:01:02]} 55. Rb6 {[%clk 0:00:17]}  Kg4 {[%clk 0:01:02]} 56. Rf6 {[%clk 0:00:15]} 1/2-1/2


[Site "https://www.chess.com"]